lending/lending_fUSD_20240411
["ID","MTS","AMOUNT","RATE_DAILY","PERIOD"]
[322129442,1712825445812,-500.0,0.00044,7]
[322129443,1712825445821,-500.0,0.00044,7]
[322129444,1712825445831,-500.0,0.00044,7]
[322129445,1712825445840,-500.0,0.00044,7]
[322129446,1712825445849,-500.0,0.00044,7]
[322129447,1712825445859,-329.66,0.00044,7]
[322129448,1712825445867,-500.0,0.00044,7]
[322129449,1712825445877,-5000.0,0.00044,7]
[322129450,1712825445886,-152.55804764,0.00044048,30]
[322129451,1712825445895,-1000.0,0.000441,2]
[322129452,1712825445904,-153.08,0.000441,4]
[322129453,1712825445913,-153.08,0.000441,4]
[322129454,1712825445922,-153.08,0.000441,4]
[322129455,1712825445931,-153.08,0.000441,4]
[322129456,1712825445940,-153.08,0.000441,4]
[322129457,1712825445949,-153.08,0.000441,4]
[322129458,1712825445959,-153.08,0.000441,4]
[322129459,1712825445969,-153.08,0.000441,4]
[322129460,1712825445978,-153.08,0.000441,4]
[322129461,1712825445988,-153.08,0.000441,4]
[322129462,1712825445998,-153.08,0.000441,4]
[322129463,1712825446007,-153.08,0.000441,4]
[322129464,1712825446018,-153.08,0.000441,4]
[322129465,1712825446038,-152.6758148,0.00044325,30]
[322129466,1712825446056,-155.01871473,0.00044329,30]
[322129467,1712825446074,-157.041117,0.00044448,45]
[322129468,1712825446096,-150.0,0.0004447,2]
[322129469,1712825446113,-150.0,0.000445,2]
[322129470,1712825446131,-151.38857113,0.00044532,23]
[322129471,1712825446150,-55607.96413677,0.00044548,12]
[322129472,1712825446166,-150.0,0.00044562,2]
[322129473,1712825446184,-1344.64182241,0.00044584,2]
[322129474,1712825446200,-556.59080911,0.00044584,2]
[322129475,1712825446219,-63663.256352,0.000446,2]
[322129476,1712825446241,-152.55804764,0.00044603,30]
[322129477,1712825446256,-157.36,0.00044618,2]
[322129478,1712825446270,-500.0,0.00044628,30]
[322129479,1712825446287,-157.21377487,0.00044666,30]
[322129480,1712825446303,-243.59,0.00044701,2]
[322129481,1712825446317,-150.0,0.00044741,2]
[322129482,1712825446332,-217.69,0.00044766,2]
[322129483,1712825446347,-150.0,0.00044794,2]
[322129484,1712825446369,-155.01871473,0.00044802,30]
[322129485,1712825446384,-150.0,0.00044819,2]
[322129486,1712825446398,-150.0,0.00044824,2]
[322129487,1712825446413,-150.0,0.00044842,2]
[322129488,1712825446428,-150.0,0.00044846,2]
[322129489,1712825446443,-173.9500628,0.00044855,2]
[322129490,1712825446458,-150.0,0.00044888,2]
[322129491,1712825446473,-6575.11708472,0.000449,20]
[322129492,1712825446488,-150.0,0.000449,8]
[322129493,1712825446503,-150.0,0.00044928,2]
[322129494,1712825446518,-5000.0,0.00044986,4]
[322129495,1712825446533,-1633.42066199,0.00044988,2]
[322129496,1712825446551,-593.88815,0.00044989,26]
[322129497,1712825446567,-2878.22126822,0.00044989,2]
[322129498,1712825446584,-501.22268643,0.00044995,4]
[322129499,1712825446602,-360.7225945,0.00044995,2]
[322129500,1712825446617,-218.58382044,0.00044995,4]
[322129501,1712825446635,-206.60414812,0.00044995,4]
[322129502,1712825446651,-6745.48276377,0.00044995,4]
[322129503,1712825446666,-894.5781858,0.00044996,30]
[322129504,1712825446682,-62216.28116531,0.00044996,4]
[322129505,1712825446697,-550.75005717,0.00044998,4]
[322129506,1712825446713,-9537.72512302,0.00044998,4]
[322129507,1712825446728,-2354.31954713,0.00044998,4]
[322129508,1712825446743,-199.82821578,0.00044998,4]
[322129509,1712825446758,-404.73102028,0.00044998,4]
[322129510,1712825446773,-1251.17792584,0.00044998,4]
[322129511,1712825446788,-2150.68506891,0.00044998,5]
[322129512,1712825446807,-4351.88922171,0.00044998,4]
[322129513,1712825446822,-4727.27901978,0.00044998,4]
[322129514,1712825446836,-1089.65662145,0.00044998,2]
[322129515,1712825446851,-2349.93858112,0.00044998,4]
[322129516,1712825446866,-155.0,0.00044998,4]
[322129517,1712825446882,-150.0,0.00044999,2]
[322129518,1712825446897,-100000.0,0.00045,45]
[322129519,1712825446913,-665.53288364,0.00045,2]
[322129520,1712825446928,-508129.37023446,0.00045,30]
[322129521,1712825446943,-857.33790833,0.00045,120]
[322129522,1712825446958,-150.0,0.00045,85]
[322129523,1712825446973,-100000.0,0.00045,70]
[322129524,1712825446988,-1395.0,0.00045,7]
[322129525,1712825447004,-1395.0,0.00045,7]
[322129526,1712825447021,-168.73719176,0.00045,4]
[322129527,1712825447036,-2386.81465282,0.00045,30]
[322129528,1712825447051,-1832.07601057,0.00045,10]
[322129529,1712825447066,-3392.31528167,0.00045,4]
[322129530,1712825447081,-256.48341393,0.00045,60]
[322129531,1712825447095,-679.78872895,0.00045,15]
[322129532,1712825447111,-175.42339407,0.00045,2]
[322129533,1712825447126,-327.33550357,0.00045,4]
[322129534,1712825447141,-269.39941821,0.00045,2]
[322129535,1712825447157,-543.95279353,0.00045,120]
[322129536,1712825447171,-16760.78287181,0.00045,4]
[322129537,1712825447188,-3500.0,0.00045,30]
[322129538,1712825447203,-5032.8039635,0.00045,4]
[322129539,1712825447221,-700.0,0.00045,80]
[322129540,1712825447238,-331.0,0.00045,21]
[322129541,1712825447254,-850.0,0.00045,3]
[322129542,1712825447269,-500.0,0.00045,7]
[322129543,1712825447284,-133175.2538535,0.00045003,2]
[322129544,1712825447300,-24761.4020777,0.00045003,2]
[322129545,1712825447315,-2237.2538952,0.00045003,2]
[322129546,1712825447329,-1249.3603404,0.00045003,2]
[322129547,1712825447346,-1491.7498984,0.0004501,2]
[322129548,1712825447361,-10918.5900182,0.0004501,2]
[322129549,1712825447377,-298.3499797,0.0004501,2]
[322129550,1712825447392,-165.96780529,0.00045041,30]
[322129551,1712825447407,-163.44113223,0.0004507,30]
[322129552,1712825447422,-153.17,0.0004508,15]
[322129553,1712825447436,-150.5,0.0004509,15]
[322129554,1712825447451,-100000.0,0.000451,70]
[322129555,1712825447466,-151.38857113,0.00045163,26]
[322129556,1712825447481,-152.6758148,0.00045173,30]
[322129557,1712825447495,-152.33080864,0.00045286,30]
[322129558,1712825447509,-161.50279788,0.00045342,30]
[322129559,1712825447524,-1242.6628078,0.0004539,2]
[322129560,1712825447540,-150.0,0.00045418,2]
[322129561,1712825447557,-157.041116,0.00045448,45]
[322129562,1712825447572,-155.01871473,0.00045465,30]
[322129563,1712825447590,-150.0,0.000455,8]
[322129564,1712825447605,-100000.0,0.000457,70]
[322129565,1712825447619,-154.36695506,0.00045748,30]
[322129566,1712825447634,-6575.1170847,0.0004579,21]
[322129567,1712825447649,-151.38857113,0.00045795,28]
[322129568,1712825447665,-11047.69668924,0.00045888,60]
[322129569,1712825447676,-150.0,0.00045935,60]
[322129570,1712825447686,-161.50279788,0.00045997,30]
[322129571,1712825447696,-100000.0,0.00046,46]
[322129572,1712825447706,-155.0,0.00046,15]
[322129573,1712825447715,-16623.42135812,0.00046,90]
[322129574,1712825447725,-1106.0,0.00046,2]
[322129575,1712825447734,-511.2274311,0.00046,120]
[322129576,1712825447743,-254.9,0.00046,96]
[322129577,1712825447753,-2172.74717457,0.00046,2]
[322129578,1712825447763,-8000.0,0.00046,60]
[322129579,1712825447772,-7429.95116501,0.00046,30]
[322129580,1712825447782,-150.0,0.00046,8]
[322129581,1712825448138,-161.50279788,0.00046084,30]
[322129582,1712825448180,-155.01871473,0.00046204,30]
[322129583,1712825448203,-295.65,0.00046247,15]
[322129584,1712825448212,-151.38857113,0.00046426,31]
[322129585,1712825448222,-157.041116,0.00046448,46]
[322129586,1712825448232,-150.0,0.000465,8]
[322129587,1712825448241,-500.0,0.00046575,120]
[322129588,1712825448250,-500.0,0.00046575,120]
[322129589,1712825448259,-500.0,0.00046575,120]
[322129590,1712825448268,-500.0,0.00046575,120]
[322129591,1712825448277,-500.0,0.00046575,120]
[322129592,1712825448285,-500.0,0.00046575,120]
[322129593,1712825448294,-500.0,0.00046575,120]
[322129594,1712825448305,-500.0,0.00046575,120]
[322129595,1712825448314,-500.0,0.00046575,120]
[322129596,1712825448323,-500.0,0.00046575,120]
[322129597,1712825448332,-500.0,0.00046575,120]
[322129598,1712825448342,-500.0,0.00046575,120]
[322129599,1712825448352,-500.0,0.00046575,120]
[322129600,1712825448361,-500.0,0.00046575,120]
[322129601,1712825448370,-500.0,0.00046575,120]
[322129602,1712825448379,-500.0,0.00046575,120]
[322129603,1712825448388,-500.0,0.00046575,120]
[322129604,1712825448397,-500.0,0.00046575,120]
[322129605,1712825448406,-500.0,0.00046575,120]
[322129606,1712825448417,-500.0,0.00046575,120]
[322129607,1712825448426,-500.0,0.00046575,120]
[322129608,1712825448436,-592.96372075,0.00046575,120]
[322129609,1712825448444,-6575.1170847,0.00046681,22]
[322129610,1712825448454,-1344.64182241,0.00046682,2]
[322129611,1712825448464,-556.59080911,0.00046682,2]
[322129612,1712825448473,-2622.0,0.000467,115]
[322129613,1712825448482,-163.58,0.000469,30]
[322129614,1712825448491,-166.43435673,0.00046959,30]
[322129615,1712825448501,-157.36,0.00046967,2]
[322129616,1712825448510,-100000.0,0.00047,47]
[322129617,1712825448519,-486.03518,0.00047,120]
[322129618,1712825448528,-500.0,0.00047,5]
[322129619,1712825448538,-5000.0,0.00047,10]
[322129620,1712825448546,-7411.59596361,0.00047,120]
[322129621,1712825448556,-100000.0,0.00047,70]
[322129622,1712825448565,-900.0,0.00047,3]
[322129623,1712825448574,-150.0,0.00047,9]
[322129624,1712825448584,-217.69,0.0004703,2]
[322129625,1712825448593,-151.38857113,0.00047058,33]
[322129626,1712825448606,-155.01871473,0.00047112,30]
[322129627,1712825448615,-161.50279791,0.00047336,30]
[322129628,1712825448624,-595.0,0.00047416,30]
[322129629,1712825448634,-385.0,0.00047416,30]
[322129630,1712825448643,-157.041116,0.00047448,47]
[322129631,1712825448653,-6519.0,0.000475,120]
[322129632,1712825448662,-150.0,0.000475,9]
[322129633,1712825448673,-155.01871473,0.00047527,30]
[322129634,1712825448683,-154.14489773,0.00047534,30]
[322129635,1712825448692,-154.43125071,0.00047558,30]
[322129636,1712825448702,-6575.1170847,0.00047571,23]
[322129637,1712825448710,-152.6758148,0.00047595,30]
[322129638,1712825448720,-261.43229009,0.00047677,2]
[322129639,1712825448729,-151.38857113,0.00047689,35]
[322129640,1712825448738,-584.74907176,0.000477,2]
[322129641,1712825448748,-1627.42722051,0.00047701,43]
[322129642,1712825448757,-152.08522874,0.00047715,30]
[322129643,1712825448766,-1491.7498984,0.00047768,2]
[322129644,1712825448775,-8766.7769854,0.00047768,2]
[322129645,1712825448784,-298.3499797,0.00047768,2]
[322129646,1712825448793,-19880.457006,0.00047777,2]
[322129647,1712825448804,-2237.2538952,0.00047777,2]
[322129648,1712825448813,-1249.3603404,0.00047777,2]
[322129649,1712825448822,-106923.8688578,0.00047778,2]
[322129650,1712825448831,-1302.8,0.000478,2]
[322129651,1712825448840,-1302.8,0.000478,2]
[322129652,1712825448850,-1302.8,0.000478,2]
[322129653,1712825448859,-768357.13575839,0.00047801,61]
[322129654,1712825448868,-80672.483862,0.00047801,2]
[322129655,1712825448877,-14999.5119342,0.00047801,2]
[322129656,1712825448886,-2237.2538952,0.00047801,2]
[322129657,1712825448896,-1249.3603404,0.00047801,2]
[322129658,1712825448905,-1491.7498984,0.00047801,2]
[322129659,1712825448915,-6614.9639526,0.00047801,2]
[322129660,1712825448924,-298.3499797,0.00047801,2]
[322129661,1712825448933,-876.2941465,0.00047808,2]
[322129662,1712825448943,-155.01871473,0.0004781,30]
[322129663,1712825448953,-22202.28216979,0.00047811,2]
[322129664,1712825448962,-161.79393098,0.00047811,2]
[322129665,1712825448971,-69015.30700581,0.00047815,2]
[322129666,1712825448981,-224.04685501,0.00047815,2]
[322129667,1712825448990,-876.2941465,0.00047815,2]
[322129668,1712825448999,-150.59990634,0.00047821,2]
[322129669,1712825449008,-3759.62419484,0.00047823,2]
[322129670,1712825449018,-22288.17097224,0.00047824,2]
[322129671,1712825449027,-69015.30700581,0.00047824,2]
[322129672,1712825449037,-8547.49151383,0.00047824,2]
[322129673,1712825449065,-365.58789715,0.00047824,2]
[322129674,1712825449089,-5747.71576526,0.00047824,2]
[322129675,1712825449102,-3397.76989014,0.00047824,2]
[322129676,1712825449114,-1117.63928077,0.00047824,2]
[322129677,1712825449127,-494.83769985,0.00047824,2]
[322129678,1712825449138,-2080.65,0.00047824,2]
[322129679,1712825449151,-500.0,0.00047824,2]
[322129680,1712825449258,-6892.9746738,0.00047824,2]
[322129681,1712825449269,-3533.8417993,0.00047824,2]
[322129682,1712825449306,-319.06,0.00047824,2]
[322129683,1712825450372,-11009.72269568,0.00047824,2]
[322129684,1712825450385,-2749.93507049,0.00047824,2]
[322129685,1712825450397,-4140.49689885,0.00047824,2]
[322129686,1712825450409,-1120.25542108,0.00047824,2]
[322129687,1712825450420,-8936.47736061,0.00047824,2]
[322129688,1712825450431,-5942.38746278,0.00047824,2]
[322129689,1712825451537,-338.68427886,0.00027119,2]
[322129690,1712825451548,-766.20440395,0.00027119,2]
[322129691,1712825451680,-1007.60821221,0.00027119,2]
[322129692,1712825451692,-2118.46357622,0.00047824,2]
[322129693,1712825451703,-3759.62419484,0.00047827,2]
[322129694,1712825451713,-652.58231762,0.00047829,2]
[322129695,1712825451723,-21249.32169911,0.00047829,2]
[322129696,1712825451736,-2332.55,0.00047829,2]
[322129697,1712825451749,-307.44854805,0.00047829,2]
[322129698,1712825451762,-16750.62695972,0.00047829,2]
[322129699,1712825451775,-1718.67884822,0.00047829,2]
[322129700,1712825451787,-304.61412016,0.00047829,2]
[322129701,1712825516543,150.0,0.00018316,2]
[322129702,1712825516564,187.12072145,0.00018316,2]
[322129703,1712825516593,475.18014001,0.00018316,2]
[322129705,1712825585410,12069.44603882,0.000189,2]
[322129707,1712825845558,459.32902096,0.00020998,60]
[322129714,1712826524700,154.95,0.0001912,2]
[322129733,1712826631937,-2203.45716065,0.00019557,2]
[322129734,1712826631947,-1773.81261616,0.00019558,2]
[322129735,1712826631957,-157.92490406,0.00019562,2]
[322129736,1712826631967,-1860.620496,0.00019667,2]
[322129737,1712826631978,-338.68427886,0.0002,2]
[322129738,1712826631987,-157.92490406,0.00020231,2]
[322129739,1712826631997,-285.8,0.00020234,2]
[322129740,1712826632007,-1624.81043763,0.00020719,2]
[322129741,1712826632017,-23818.12480876,0.00020721,2]
[322129742,1712826632030,-3617.892,0.00020721,2]
[322129743,1712826632048,-23973.08154546,0.00020721,2]
[322129744,1712826632057,-999.99,0.00020721,2]
[322129745,1712826632067,-25900.97192462,0.000208,2]
[322129746,1712826632076,-3703.29,0.000208,2]
[322129747,1712826632086,-905.04,0.000208,2]
[322129748,1712826632096,-8535.6287,0.000209,2]
[322129749,1712826632106,-4984.1809668,0.000209,2]
[322129750,1712826632116,-1344.64182241,0.000209,2]
[322129751,1712826632126,-1704.03710168,0.000209,2]
[322129752,1712826632136,-157.92490406,0.000209,2]
[322129753,1712826632145,-1267.72729264,0.000209,2]
[322129754,1712826632340,-7481.28795654,0.000209,2]
[322129755,1712826632350,-151.46735385,0.000209,2]
[322129756,1712826632360,-6509.70888204,0.000209,3]
[322129757,1712826632370,-420.43817056,0.000209,2]
[322129758,1712826632380,-445.66100228,0.000209,2]
[322129759,1712826632390,-259.66,0.00020988,3]
[322129760,1712826632400,-778.99,0.00020988,3]
[322129761,1712826632409,-21770.18197983,0.0002099,2]
[322129762,1712826632419,-155.38545165,0.00020998,2]
[322129763,1712826632429,-224.59406512,0.00020998,2]
[322129765,1712826632439,-179.45365214,0.00020998,2]
[322129767,1712826632449,-1768.48201078,0.00020998,2]
[322129768,1712826632459,-155.65274348,0.00020998,2]
[322129769,1712826632469,-155.12181137,0.00020998,2]
[322129770,1712826632480,-638.77218914,0.00020998,2]
[322129771,1712826632489,-505.49150919,0.00020998,2]
[322129772,1712826632499,-203.32322521,0.00020999,2]
[322129773,1712826632509,-1650.0026369,0.00020999,2]
[322129774,1712826632518,-198.05707006,0.00020999,2]
[322129775,1712826632528,-458.92390571,0.00020999,2]
[322129776,1712826632538,-500.0,0.00020999,2]
[322129777,1712826632548,-160.7320986,0.00020999,2]
[322129778,1712826632558,-384.64431255,0.00020999,2]
[322129779,1712826632567,-332.76644182,0.00021,2]
[322129780,1712826632577,-74954.44746454,0.00021,2]
[322129781,1712826632590,-783.35161053,0.00021,2]
[322129782,1712826632611,-886.5280874,0.00021,2]
[322129846,1712826638679,-155.0,0.00019561,2]
[322129847,1712826638689,-690.01953201,0.000209,2]
[322129848,1712826638698,-3646.65954243,0.00021,2]
[322129849,1712826638956,-10714885.1751546,0.00021,2]
[322129854,1712826638970,-89030.42331798,0.00021,2]
[322129858,1712826639006,-455.11999984,0.00021,2]
[322129860,1712826639020,-308.38410755,0.00021,2]
[322129862,1712826639033,-435.30828838,0.00021,2]
[322129884,1712826640030,-363986.29042171,0.00021,2]
[322129885,1712826640144,-1350.427572,0.00021,2]
[322129886,1712826640318,-302.0,0.00021,2]
[322129887,1712826640329,-506.91429664,0.00021,2]
[322129897,1712826642946,-3073.6938049,0.00021,2]
[322129898,1712826643055,-3561.75126779,0.00021,2]
[322129899,1712826643114,-49803.47399119,0.00021,2]
[322129916,1712826644145,-1520022.42830439,0.00021,2]
[322129917,1712826644158,-6004.12733569,0.00021,2]
[322129918,1712826644173,-9854.76985001,0.00021,2]
[322129919,1712826644185,-1465.15290001,0.00021,2]
[322129920,1712826644197,-3005.80226399,0.00021,2]
[322129921,1712826644208,-1781.36417555,0.00021,2]
[322129927,1712826646012,-1169.49814348,0.000209,2]
[322129928,1712826646022,-483.94716342,0.00020999,2]
[322129929,1712826646032,-19068.72730535,0.00021,2]
[322129930,1712826646043,-17582.4447,0.00021,2]
[322129931,1712826646092,-180473.33935416,0.00021,2]
[322129932,1712826646283,-22589.74730942,0.00021,2]
[322129947,1712827532481,-155.0,0.00020168,2]
[322129948,1712827532504,-155.0,0.00020169,2]
[322129949,1712827538730,487.12072145,0.00020169,2]
[322130093,1712827817806,-183.27,0.0002017,2]
[322130094,1712827817828,-1773.81261616,0.0002075,2]
[322130095,1712827817849,-3769.79251324,0.00020751,2]
[322130096,1712827817870,-2203.45716065,0.00020761,2]
[322130097,1712827817892,-156.59183347,0.00020764,2]
[322130098,1712827817914,-534.97693,0.0002079,2]
[322130099,1712827817935,-150.0,0.00020899,2]
[322130100,1712827817956,-300.0,0.00020899,2]
[322130101,1712827817979,-4817.70902839,0.000209,2]
[322130102,1712827818001,-151.54050924,0.000209,2]
[322130103,1712827818023,-152.37689833,0.000209,3]
[322130104,1712827818044,-494.97541704,0.000209,2]
[322130105,1712827818066,-223.12196161,0.000209,2]
[322130106,1712827818089,-677.79348939,0.000209,2]
[322130107,1712827818111,-174.28819338,0.000209,2]
[322130108,1712827818132,-327.15007407,0.000209,2]
[322130109,1712827818153,-190.65,0.0002099,2]
[322130110,1712827818175,-190.65,0.0002099,2]
[322130111,1712827818196,-519.32,0.0002099,3]
[322130112,1712827818220,-644.82471199,0.00020998,2]
[322130113,1712827818246,-338.68427886,0.00020998,2]
[322130114,1712827818267,-1763.79617269,0.00020998,2]
[322130115,1712827818289,-173.02749074,0.00020998,2]
[322130116,1712827818312,-216.55804018,0.00020998,2]
[322130117,1712827818338,-1559.63268057,0.00020999,2]
[322130126,1712827832105,-1863.36731943,0.00020999,2]
[322130127,1712827832115,-48526.1840247,0.00020999,2]
[322130128,1712827832125,-166.38322091,0.00021,2]
[322130129,1712827832134,-17823.59646682,0.00021,2]
[322130130,1712827832147,-333.00794755,0.00021,2]
[322130131,1712827832159,-558.15546194,0.00021,2]
[322130132,1712827832170,-520.56043669,0.00021,2]
[322130133,1712827832220,-253.083484,0.00021,2]
[322130134,1712827832233,-148490.37294721,0.00021,2]
[322130135,1712827832251,-3606.40280001,0.00021,2]
[322130136,1712827832264,-255.97559429,0.00021,2]
[322130137,1712827832282,-16214.58494237,0.00021,2]
[322130138,1712827832294,-279.69657276,0.00021,2]
[322130139,1712827832307,-1098.8377003,0.00021,2]
[322130140,1712827832320,-1672.77186781,0.00021,2]
[322130141,1712827832333,-3571.84322377,0.00021,2]
[322130142,1712827832345,-448.74875887,0.00021,2]
[322130143,1712827832356,-1701.26605067,0.00021,2]
[322130144,1712827832373,-6158.3479369,0.00021,2]
[322130145,1712827832411,-899.15107179,0.00021,2]
[322130146,1712827832423,-1071.35837695,0.00021,2]
[322130147,1712827832454,-25198.7927626,0.00021,2]
[322130148,1712827832471,-1200.0,0.00021,2]
[322130149,1712827832485,-33645.34226272,0.00021,2]
[322130206,1712827838854,-3769.79251324,0.00020998,2]
[322130208,1712827838864,-1773.81261616,0.00020998,2]
[322130210,1712827838873,-1524.55012059,0.00020998,2]
[322130213,1712827838892,-5041.01239672,0.00020998,2]
[322130216,1712827838914,-1541.35395941,0.00020998,2]
[322130218,1712827838937,-2505.53926046,0.00020998,2]
[322130220,1712827838957,-507.89,0.00020998,2]
[322130221,1712827838968,-24070.36942797,0.00020998,2]
[322130222,1712827838977,-64960.05389001,0.00021,2]
[322130223,1712827838990,-16675.77316331,0.00021,2]
[322130269,1712827840233,-617.793995,0.00021,2]
[322130271,1712827840246,-344.67950017,0.00021,2]
[322130282,1712827840342,-96621.28509675,0.00021,2]
[322130289,1712827840404,-3530.3,0.00021,2]
[322130520,1712827843133,-7064.34695999,0.00021,2]
[322130521,1712827843191,-696.63048,0.00021,2]
[322130522,1712827843304,-16746.10393422,0.00021,2]
[322130523,1712827843316,-1723.91258441,0.00021,2]
[322130524,1712827843364,-1070.25670592,0.00021,2]
[322130525,1712827843421,-3038.65043507,0.00021,2]
[322130526,1712827843435,-275.56786567,0.00021,2]
[322130527,1712827843534,-1026.58360917,0.00021,2]
[322130528,1712827843592,-656.35,0.00021,2]
[322130529,1712827843606,-878.1499995,0.00021,2]
[322130530,1712827843656,-350.23999998,0.00021,2]
[322130549,1712827846164,-719.84129831,0.00021,2]
[322130550,1712827846224,-371.88291753,0.00021,2]
[322130551,1712827846295,-2087.9552803,0.00021,2]
[322130552,1712827846307,-170616.01793193,0.00021,2]
[322130553,1712827846319,-2500.27684168,0.00021,2]
[322130554,1712827846334,-319.50316463,0.00021,2]
[322130555,1712827846350,-12617.75986817,0.00021,2]
[322130556,1712827846362,-6928.48042,0.00021,2]
[322130557,1712827846374,-2273.83887988,0.00021,2]
[322130558,1712827846510,-611.18206583,0.00021,2]
[322130559,1712827846524,-29635.0316777,0.00021,2]
[322130562,1712827861155,5074.75869653,0.00020169,2]
[322130563,1712827898919,1226.31348116,0.00020169,2]
[322130564,1712827902944,11190.98976324,0.00020169,2]
[322130565,1712827973219,199.5,0.00019844,2]
[322130566,1712827983664,150.5,0.0002099,15]
[322130567,1712827983708,150.5,0.0002099,15]
[322130568,1712827984209,150.5,0.0002098,15]
[322130569,1712827984251,150.5,0.0002098,15]
[322130570,1712827984634,177.57,0.0002097,15]
[322130571,1712827984766,209.18,0.0002097,15]
[322130572,1712828103424,150.5,0.0002099,15]
[322130573,1712828103874,150.5,0.0002098,15]
[322130574,1712828104344,150.5,0.0002097,15]
[322130575,1712828224567,150.5,0.0002099,15]
[322130576,1712828225525,150.5,0.0002098,15]
[322130577,1712828225725,150.5,0.0002097,15]
[322130578,1712828344458,150.5,0.0002099,15]
[322130579,1712828344932,150.5,0.0002098,15]
[322130580,1712828345451,150.5,0.0002097,15]
[322130581,1712828464668,273.0,0.0002099,15]
[322130582,1712828591410,214.23,0.00018755,2]
[322130629,1712829033013,-689.30241408,0.00020453,2]
[322130630,1712829033049,-19.09755543,0.00020453,2]
[322130631,1712829033059,-267.08436729,0.00020453,2]
[322130632,1712829033071,-387.51100691,0.00020453,2]
[322130633,1712829033096,-388.71335565,0.00020453,2]
[322130634,1712829033105,-45.62401046,0.00020454,2]
[322130635,1712829033117,-109.37598954,0.00020454,2]
[322130636,1712829033126,-1691.30401046,0.00020454,2]
[322130637,1712829033207,-1411.54365452,0.00020454,2]
[322130638,1712829033218,-355.52000041,0.00020454,2]
[322130639,1712829033230,-311.42484785,0.00020454,2]
[322130640,1712829033240,-359.03327844,0.00020455,2]
[322130641,1712829033276,-1414.77933772,0.00020455,2]
[322130642,1712829033286,-269.41910385,0.00020455,2]
[322130643,1712829033295,-809.66168614,0.00020455,2]
[322130644,1712829033304,-150.0,0.00020462,2]
[322130645,1712829033313,-4042.72,0.00020464,2]
[322130646,1712829033323,-2564.67,0.00020623,2]
[322130647,1712829033332,-1000.0,0.00020666,2]
[322130648,1712829033341,-208.66,0.000208,2]
[322130649,1712829033351,-4675.32249789,0.000209,2]
[322130650,1712829033360,-151.53905028,0.000209,2]
[322130651,1712829033369,-610.09825179,0.000209,2]
[322130652,1712829033378,-445.47787539,0.000209,2]
[322130653,1712829033387,-325.70945123,0.000209,2]
[322130654,1712829033397,-590.61184201,0.000209,3]
[322130655,1712829033406,-684.37344946,0.000209,2]
[322130656,1712829033415,-174.28819338,0.000209,2]
[322130657,1712829033425,-12669.97437385,0.00020985,2]
[322130658,1712829033434,-427.41789457,0.00020988,2]
[322130660,1712829033444,-423.46,0.0002099,3]
[322130663,1712829033453,-2356.03750157,0.00020997,2]
[322130666,1712829033462,-222.92172502,0.00020998,2]
[322130669,1712829033471,-1344.67035807,0.00020998,2]
[322130672,1712829033483,-7173.92137353,0.00020998,2]
[322130675,1712829033492,-753.26862613,0.00020998,2]
[322130677,1712829033500,-567.01229691,0.00020998,2]
[322130680,1712829033510,-5529.51782485,0.00020998,2]
[322130682,1712829033518,-771.84071511,0.00020998,2]
[322130684,1712829033528,-6757.80812384,0.00020998,2]
[322130686,1712829033537,-3878.54193686,0.00020998,2]
[322130688,1712829033546,-307.09041128,0.00020998,2]
[322130689,1712829033558,-164.36576479,0.00020998,2]
[322130691,1712829033568,-308.00612182,0.00020998,2]
[322130693,1712829033577,-4395.89511718,0.00020998,2]
[322130694,1712829033586,-155.0,0.00020998,2]
[322130695,1712829033596,-500.0,0.00020999,2]
[322130696,1712829033605,-500.0,0.00020999,2]
[322130697,1712829033614,-500.0,0.00020999,2]
[322130698,1712829033623,-597.88523203,0.00020999,2]
[322130699,1712829033633,-252.14928412,0.00020999,2]